Cogmind - Beta 15 @@@ ROGUE MODE // 2025.07.21 @ 17:07:00 Player: Skysub Result: Destroyed by SH-AIQ(R) with Subdweller Beam Cannon Performance ------------- Evolutions (0) 0 Regions Visited (2) 400 Robots Destroyed (29) 145 Value Destroyed (653) 653 Prototype IDs (0) 0 Alien Tech Used (0) 0 Bonus (0) 0 TOTAL SCORE: 1198 Bonus ------- None Cogmind --------- Core Integrity 0/250 Matter 281/300 Energy 248/250 System Corruption 0% Temperature Warm (169) Movement Treading (240) Ox1 Location -10/Subcaves Parts ------- > --- POWER (1) -------- Ion Engine > --- PROPULSION (2) --- Light Treads Compact Wheel > --- UTILITY (2) ------ Large Storage Unit Hardened Light Armor Plating > --- WEAPON (2) ------- Rocket Launcher > --- INVENTORY (15) --- Subdweller Power Source Light Treads Subdweller Monowheel Humpback Structural Scanner Hardened Light Armor Plating Hardened Light Armor Plating Hardened Light Armor Plating Grenade Launcher Grenade Launcher Rocket Launcher Mining Laser Peak State ------------ > --- POWER ------------ Ion Engine > --- PROPULSION ------- Light Treads Compact Wheel > --- UTILITY ---------- Large Storage Unit Hardened Light Armor Plating > --- WEAPON ----------- Subdweller Laser Light Assault Rifle > --- INVENTORY -------- Subdweller Power Source Subdweller Monowheel Humpback Structural Scanner Hardened Light Armor Plating Hardened Light Armor Plating Hardened Light Armor Plating Grenade Launcher Grenade Launcher Rocket Launcher Rocket Launcher Mining Laser [Rating: 11] Favorites ----------- Power Ion Engine Engine Ion Engine Propulsion Light Treads Treads Light Treads Wheel Compact Wheel Utility Structural Scanner Device Structural Scanner Storage Large Storage Unit Protection Hardened Light Armor Plating Weapon Light Assault Rifle Energy Gun Subdweller Laser Ballistic Gun Light Assault Rifle Launcher Rocket Launcher Special Weapon Mining Laser Build | -11 -10 -10 ------- Run | Yrd Mat Sub Slots Evolved . | . . . Power . | . . . Propulsion . | . . . Utility . | . . . Weapon . | . . . Parts Attached 23 | 6 10 7 Power 2 | 1 1 . Engine 2 | 1 1 . Core . | . . . Reactor . | . . . Propulsion 6 | 2 3 1 Treads 4 | 2 1 1 Leg . | . . . Wheel 2 | . 2 . Hover . | . . . Flight . | . . . Utility 7 | 1 3 3 Device 2 | . 2 . Storage 2 | 1 1 . Processor . | . . . Hackware . | . . . Protection 3 | . . 3 Artifact . | . . . Weapon 8 | 2 3 3 Energy Gun 1 | . . 1 Energy Cannon . | . . . Ballistic Gun 5 | 2 3 . Ballistic Cannon . | . . . Launcher 1 | . . 1 Special Weapon 1 | . . 1 Impact Weapon . | . . . Slashing Weapon . | . . . Piercing Weapon . | . . . Special Melee Weapon . | . . . Unidentified Prototypes . | . . . Parts Lost 7 | . 4 3 Power . | . . . Propulsion 2 | . 2 . Utility . | . . . Weapon 5 | . 2 3 Highest Loss Streak 4 | . 4 2 To Critical Strikes . | . . . Average Backups 9 | 2 8 13 Power 1 | . 1 1 Propulsion 1 | 1 1 1 Utility 2 | . 1 5 Weapon 4 | . 4 5 Tool/Special . | . . . Unused Backups 10 | . . 10 Power 2 | . . 2 Propulsion 1 | . . 1 Utility 3 | . . 3 Weapon 4 | . . 4 Tool/Special . | . . . Average Slot Usage (%) 96 | . 96 98 Engine 14 | . 14 14 Treads 18 | . 20 14 Wheel 8 | . 7 14 Device 11 | . 12 8 Storage 14 | . 14 14 Protection 1 | . . 5 Ballistic Gun 24 | . 26 17 Peak Build Rating 11 | 6 9 11 Average Rating 7 | 4 7 9 On Entrance 5 | . 6 9 Naked Turns . | . . . Heaviest Build 35 | 13 29 35 Greatest Support 40 | 40 40 20 Greatest Overweight (x) 2 | 2 1 2 Average Overweight (x) . | . . 1 Largest Inventory Capacity 15 | 8 15 15 Average Capacity 13 | 7 13 15 Most Carried 15 | 5 15 15 Average Carried 9 | 3 8 14 Final Capacity 15 | 8 15 15 Final Carried 15 | 5 15 13 Class Distribution -------------------- 94% | Mutant 5% | Scavenger-Mutant Dominant Class ---------------- Mutant | -10/Materials Mutant | -10/Subcaves Resources | -11 -10 -10 ----------- Run | Yrd Mat Sub Matter Collected 835 | 224 501 110 Remotely . | . . . Salvage Created 1070 | 17 914 139 Parts 66 | 2 52 12 Haulers Intercepted 1 | . 1 . Recyclers Shooed 2 | 1 1 . Parts Field Recycled . | . . . Retrieved Matter . | . . . Parts Self-Destructed 4 | . . 4 Prevented . | . . . Kills | -11 -10 -10 ------- Run | Yrd Mat Sub Combat Hostiles Destroyed 20 | . 17 3 Guns 20 | . 17 3 Classes Destroyed 9 | 1 6 2 Builder 3 | . 3 . Tunneler 1 | 1 . . Hauler 1 | . 1 . Recycler 2 | . 2 . Watcher 2 | . 2 . Swarmer 6 | . 6 . Grunt 11 | . 11 . Sentry 1 | . . 1 Subdweller 2 | . . 2 Best Kill Streak 4 | 1 4 1 Combat Bots Only 3 | . 3 1 Max Kills in Single Turn 1 | 1 1 1 Gunslinging . | . . . Exploded . | . . . Melee . | . . . Uniques/NPCs Destroyed . | . . . Combat | -11 -10 -10 -------- Run | Yrd Mat Sub Hostile Shots Fired 138 | . 100 38 Missed 26 | . 17 9 Hits 112 | . 83 29 Projectile 112 | . 83 29 Critical Strikes 2 | . 1 1 Damage Taken 1595 | . 891 704 Core 264 | . 118 146 Absorbed by Shields . | . . . Core Remaining (%) 100 | 100 . . Volleys Fired 124 | 2 97 25 Largest 2 | 2 2 2 Hottest 100 | 40 40 100 Shots Fired 230 | 4 183 43 Gun 226 | 4 183 39 Cannon . | . . . Launcher . | . . . Special 4 | . . 4 Kinetic 221 | 4 183 34 Thermal 9 | . . 9 Explosive . | . . . Electromagnetic . | . . . Robot Hit Streak 24 | 4 24 22 Robot Miss Streak 4 | . 4 2 Penetration Max . | . . . Secondary Targets 7 | . 6 1 Max Gunslinging Chain 1 | . 1 1 Shots Hit Robots 171 | 4 133 34 Core Hits 61 | 2 50 9 Critical Kills 1 | . 1 . Critical Parts Destroyed . | . . . Critical Strikes 1 | . 1 . Destroy 1 | . 1 . Melee Attacks . | . . . Impact . | . . . Slashing . | . . . Piercing . | . . . Sneak Attacks . | . . . Combat Hostiles . | . . . Follow-up Attacks . | . . . Damage Inflicted 1774 | 39 1367 368 Guns 1756 | 39 1354 363 Cannons . | . . . Explosions . | . . . Melee . | . . . Ramming 18 | . 13 5 Kinetic 1658 | 39 1354 265 Thermal 98 | . . 98 Explosive . | . . . Electromagnetic . | . . . Impact . | . . . Slashing . | . . . Piercing . | . . . Highest Corruption . | . . . Average Corruption . | . . . Corruption Purged . | . . . Corruption Blocked . | . . . Overload Shots . | . . . Overflow Damage . | . . . Projectiles . | . . . Explosions . | . . . Melee . | . . . Knockbacks . | . . . Impact . | . . . Kinetic . | . . . Secondary . | . . . Self-Inflicted Damage 4 | . 4 . Shots . | . . . Rammed 8 | . 4 4 Targets Rammed 8 | . 4 4 Kicked . | . . . Crushed . | . . . Highest Temperature 254 | . 16 254 Average Temperature 18 | . 7 61 Received Heat Transfer 808 | . 375 433 Siege Activations . | . . . Martial Activations . | . . . Shielding Activations . | . . . Robots Disrupted . | . . . Combat Hostiles . | . . . Robots Corrupted . | . . . Combat Hostiles . | . . . Parts Fried . | . . . Impact Corruptions . | . . . Robots Melted . | . . . Combat Hostiles . | . . . Parts Melted . | . . . Heat Transferred 125 | . . 125 Parts Sabotaged . | . . . Parts Stolen . | . . . Parts Stripped . | . . . Power Chain Reactions . | . . . Alert | -11 -10 -10 ------- Run | Yrd Mat Sub Maximum Alert Level . | . . . Low Security (%) 100 | 100 100 . Level 1 . | . . . Level 2 . | . . . Level 3 . | . . . Level 4 . | . . . Level 5 . | . . . High Security . | . . . Max Security . | . . . Peak Influence 177 | 5 177 . Initial . | . . . Average 52 | . 55 . Influence Increases 569 | 5 544 20 Destroy 0b10 Robot/C 360 | . 340 20 Destroy 0b10 Robot/NC 45 | 5 40 . Destroy Leader 76 | . 76 . Successful Hack 13 | . 13 . Select Force Hacks 60 | . 60 . Lose Combat Pursuer 15 | . 15 . Influence Decreases 569 | 5 496 68 Entered New Map 24 | . . 24 Time Decay 505 | 5 456 44 Lost Part 40 | . 40 . Squads Dispatched 3 | . 3 . Investigation 3 | . 3 . Extermination . | . . . Reinforcement . | . . . Assault . | . . . Garrison . | . . . Intercept . | . . . Searches Triggered . | . . . Construction Impeded . | . . . Haulers Reinforced . | . . . Active Scanning Responses . | . . . Cargo Convoy Interrupts . | . . . Stealth | -11 -10 -10 --------- Run | Yrd Mat Sub Distress Signals 2 | . 2 . Communications Jammed . | . . . Distress Signals . | . . . Times Spotted 28 | . 24 4 Peak Tracking Total 5 | . 5 2 Tactical Retreats 1 | . 1 . Traps | -11 -10 -10 ------- Run | Yrd Mat Sub Traps Triggered 3 | . 3 . Indirectly . | . . . Trap Hack Attempts . | . . . Triggered . | . . . Disarmed . | . . . Reprogrammed . | . . . Reused . | . . . Traps Extracted . | . . . Installed . | . . . Triggered . | . . . Machines | -11 -10 -10 ---------- Run | Yrd Mat Sub Machines Disabled . | . . . Max in Single Turn . | . . . Machines Repaired . | . . . Machines Dismantled . | . . . Machines Sabotaged . | . . . Overloaded Fab Kills . | . . . Hacking | -11 -10 -10 --------- Run | Yrd Mat Sub Machines Accessed 8 | . 8 . Terminals 6 | . 6 . Fabricators . | . . . Repair Stations . | . . . Recycling Units 2 | . 2 . Scanalyzers . | . . . Garrison Access . | . . . Total Hacks 24 | . 24 . Successful 11 | . 11 . Failed 13 | . 13 . Catastrophic . | . . . Database Lockouts . | . . . Manual 21 | . 21 . Terminals 19 | . 19 . Fabricators . | . . . Repair Stations . | . . . Recycling Units 5 | . 5 . Scanalyzers . | . . . Garrison Access . | . . . Terminal Hacks 1 | . 1 . Terminal Index 1 | . 1 . Fabricator Hacks . | . . . Repair Station Hacks . | . . . Recycling Unit Hacks 2 | . 2 . Report Inventory 2 | . 2 . Scanalyzer . | . . . Garrison Access Hacks . | . . . Unauthorized Hacks 8 | . 8 . Terminals 6 | . 6 . Botnet 2 | . 2 . Skim 4 | . 4 . Fabricators . | . . . Repair Stations . | . . . Recycling Units 2 | . 2 . Tunnel 2 | . 2 . Scanalyzers . | . . . Garrison Access . | . . . Data Cores Recovered . | . . . Used . | . . . Hacking Detections 7 | . 7 . Full Trace Events . | . . . Feedback Events . | . . . Feedback Blocked . | . . . Robot Schematics Acquired . | . . . Robots Built . | . . . Authchips . | . . . Time . | . . . Total Robot Build Rating . | . . . Part Schematics Acquired . | . . . Parts Built . | . . . Authchips . | . . . Time . | . . . Total Part Build Rating . | . . . Parts Repaired . | . . . Time . | . . . Parts Recycled . | . . . Recycled Matter . | . . . Retrieved Matter . | . . . Retrieved Components . | . . . Parts Scanalyzed . | . . . Part Schematics Acquired . | . . . Parts Damaged . | . . . Bothacking | -11 -10 -10 ------------ Run | Yrd Mat Sub Used RIF Installer . | . . . Robots Hacked . | . . . Non-combat . | . . . Combat . | . . . Robot Hacks Applied . | . . . Relay Couplers Released . | . . . Fabnet Peak Effective % . | . . . Robots Rewired . | . . . Allies Hacked . | . . . Hacks Repelled . | . . . Allies | -11 -10 -10 -------- Run | Yrd Mat Sub Total Allies . | . . . Largest Group . | . . . Highest-Rated Group . | . . . Highest-Rated Ally . | . . . Total Orders . | . . . Ally Attacks . | . . . Total Damage . | . . . Kills . | . . . Allies Corrupted . | . . . Allies Melted . | . . . Intel | -11 -10 -10 ------- Run | Yrd Mat Sub Active Infowar (turns) 1533 | . 1314 219 Structural 1533 | . 1314 219 Robot Analysis Total . | . . . Derelict Logs Recovered . | . . . Drone Launches . | . . . Drone Recoveries . | . . . Exploration | -11 -10 -10 ------------- Run | Yrd Mat Sub Turns Passed 1963 | 97 1483 383 Spaces Moved 1142 | 55 861 226 Core 12 | 12 . . Treads 458 | 43 411 4 Legs . | . . . Wheels 672 | . 450 222 Hover . | . . . Flight . | . . . Fastest Speed 50 | 50 105 115 Average Speed 133 | 143 135 119 Slowest Speed 240 | 160 240 240 Overloaded Moves . | . . . Propulsion Burnouts . | . . . Robots Hopped . | . . . Potential Cave-ins . | . . . Cave-ins Triggered . | . . . Exploration Rate (%) 43 | 4 97 29 Regions Visited 2 Branch Regions 1 Pre-discovered Areas 2 | . 2 . Known Exits Taken . | . . . Unknown Exits Taken 2 | 1 1 . Scrap Searched . | . . . Spaces Dug . | . . . Terrain Destroyed . | . . . Melee . | . . . Projectile . | . . . AOE . | . . . Terrain Rammed . | . . . Walls Destroyed . | . . . Machines Disabled . | . . . Actions | -11 -10 -10 --------- Run | Yrd Mat Sub Total 1359 | 67 1006 286 Wait 29 | . 20 9 Move 1140 | 54 860 226 Hop . | . . . Pick Up 23 | 5 13 5 Fast Attach 8 | 6 2 . Attach 7 | . 5 2 Detach . | . . . Swap 12 | . 4 8 Drop 8 | . 1 7 Fire 124 | 2 97 25 Melee . | . . . Ram 2 | . 2 . Kick . | . . . Crush 6 | . 2 4 Escape Stasis . | . . . Rewire . | . . . Trap . | . . . Miscellaneous . | . . . Route ------- -11/Scrapyard -10/Materials (discovered 6 exits: [*Mat x3] / [*Min x2] / [*Sub]) -10/Subcaves (discovered 1 exit: [*Scr]) History --------- Turn | Location | Event 14 | -11/Scrapyard | Discovered new exit (range 16) 98 | -11/Scrapyard | Entered Materials 129 | -10/Materials | Discovered new exit (range 14) 252 | -10/Materials | Discovered new exit (range 16) 307 | -10/Materials | Build established: Mutant 634 | -10/Materials | Discovered new exit (range 14) 833 | -10/Materials | Discovered new exit (range 16) 974 | -10/Materials | Lost 4 parts (2n2w) 997 | -10/Materials | Discovered new exit (range 10) 1328 | -10/Materials | Discovered new exit (range 5) 1581 | -10/Materials | Entered Subcaves 1582 | -10/Subcaves | Approached by a straggling Scientist 1652 | -10/Subcaves | Core integrity fell below 50% 1870 | -10/Subcaves | Scientist uncovered a shortcut to Scraptown 1911 | -10/Subcaves | Disturbed a concealed Subdweller 1957 | -10/Subcaves | Core integrity fell below 20% 1964 | -10/Subcaves | Destroyed by SH-AIQ(R) with Subdweller Beam Cannon Last Messages --------------- 01835_ Lgt. Armor Plating fries itself beyond repair. GN-QUU(c): "I think it's somewhere south of here" 01839_ Lgt. Treads fries itself beyond repair. 01841_ Dropped Lgt. Treads. 01842_ Acquired Lgt. Treads. 01844_ Heat Sink fries itself beyond repair. 01845_ Imp. Ion Engine fries itself beyond repair. 01853_ Acquired 42 matter. 01870_ GN-QUU(c): "Hah, right again, there it is!" 01911_ SH-AIQ(R) angrily emerges from the Twisted Machinery. 01930_ Sub. Laser shoots sparks and powers down. 01932_ Broken Sub. Laser destroyed. 01952_ Lgt. Assault Rifle destroyed. 01954_ Slammed into SH-AIQ(R). 01960_ Critical hit (Meltdown: +280). Map ----- +----------------------------------------------------+ | ?????????????????????????????????????###### ###??? | | ?????????????????????????????????????## ### ##??? | | ?????????????????????????????????????## ## ####?? | | ?????????????????????????????????????## %###### | | ?????????????????????????????????????## #### | | ?????????????????????????????????????### | | ?????????????????????????????????????#### | | ??????????????????????????????????????#### | | ???????????????????????????????????????###### | | ????????????????????????????????????????##### | | ???????????????????????????????????????????## | | ???????????????????????????????????????????## | | ?????????????????????????????###########???### % | | ???????????????????????#####?############??#####& | | ???????????????????????######## ###???#### ! | | ???????????????????????## #### ########## | | ???????????????????????## ### ########## | | ???????????????????????## # # # # ### | | ???????????????????????## ###### # ### | | ???????????????????????## #### # # | | ???????????????????????## #### ## | | ???????????????????????## ###### # ### | | ??????????????????????### ###### #### | | ?????????????????######### ####### ####? | | ?????????????????####### # ## ## ###?? | | ?????????????????## @ ## ##??? | | ?????????????????## ## R # ## ##### ##??? | | ?????????????????###### ### ###### ##??? | | ????????????????????### ######??## ?? | | ?????????????????????## #####??? | | ?????????????????????### ##?????? | | ??????????????????## ### ###????? | | ??????????????????## #$#" ###??? | | ??????????????????###$& ##???? ### ## | | ??????????????????##$ "##" ##????#### ## | | ??????????????????## $## ##??????## > ## | | ??????????????????###### ??????# | | ??????????????????### ??????# | | ????????????????????? ???## ## ? | | ???????????????????? #### ???## ## ??? | | ??????????????????? ########???## ###???? | | ?????????????????? #####???????????###????? | | ???????????????# ???????????????????????? | | ???????????????## ???????????????????????? | | ???????????????## ???????????????????????? | | ???????????????## ##### ???????????????????????? | | ?????????????????? ###### ???????????????????????? | | ??????????????????????####???????????????????????? | | ?????????????????????????????????????????????????? | | ?????????????????????????????????????????????????? | +----------------------------------------------------+ Best States ------------- Heat Dissipation 25 Energy Generation 10 Energy Capacity 250 Matter Stores 300 Matter Capacity 300 Sight Range 16 Terrain Scan Density 10 Armor Coverage 150 Evasion (%) 40 Recoil Reduction 2 Item Schematics ----------------- None Robot Schematics ------------------ None Fabricated ------------ Nothing Repaired ---------- Nothing Alien Tech Used ----------------- None Achievements -------------- None Challenges ------------ None Game ------ Seed ColdGyrokineticDrive Manual? 0 Play Time 00:13:15 Cumulative 166.7 hours Start 2025.07.21 @ 16:48:08 End 2025.07.21 @ 17:07:00 Sessions 1 Manual Loads 0 Difficulty Rogue Special Mode None Game No. 187 Rogue 187 Adventurer 0 Explorer 0 Win Type - Total 3 Types 1/0/0/1/0/0/0/0/0/1 Lore% 67 Gallery% 62 Achievement% 55 Wizard Run 0 Options --------- Layout 1 ASCII 0 Keyboard 1 Movement Arrows Keybinds 0 Fullscreen 1 Font 36/Smallcaps Map View 50x40 Zoom Use 0% Tactical HUD 1 Map Filters NONE Filters NONE Steam 1 RUN: 9c257b76-ec88-45b2-bd2a-a2d385646e09